fUST/lending_fUST_20250325
["ID","MTS","AMOUNT","RATE_DAILY","PERIOD"]
[356640099,1742879450851,-500.0,0.00013972,2]
[356640100,1742879450860,-3343.37,0.00013972,2]
[356640101,1742879450869,-1010.38,0.00013972,2]
[356640102,1742879450878,-500.0,0.00013972,2]
[356640103,1742879450891,-500.0,0.00013972,2]
[356640104,1742879450901,-500.0,0.00013972,2]
[356640105,1742879450912,-500.0,0.00013972,2]
[356640106,1742879450923,-500.0,0.00013972,2]
[356640107,1742879450933,-500.0,0.00013972,2]
[356640108,1742879451027,-641.05562953,0.00013972,2]
[356640109,1742879451046,-500.0,0.00013972,2]
[356640110,1742879451056,-500.0,0.00013972,2]
[356640111,1742879451065,-500.0,0.00013972,2]
[356640112,1742879451075,-500.0,0.00013972,2]
[356640113,1742879451084,-500.0,0.00013972,2]
[356640114,1742879451093,-500.0,0.00013972,2]
[356640115,1742879451103,-500.0,0.00013972,2]
[356640116,1742879451112,-612.24,0.00013972,2]
[356640117,1742879451121,-500.0,0.00013972,2]
[356640118,1742879451131,-500.0,0.00013972,2]
[356640119,1742879451140,-500.0,0.00013972,2]
[356640120,1742879451150,-500.0,0.00013972,2]
[356640121,1742879451159,-500.0,0.00013972,2]
[356640122,1742879451170,-500.0,0.00013972,2]
[356640123,1742879451182,-500.0,0.00013972,2]
[356640124,1742879451192,-500.0,0.00013972,2]
[356640125,1742879451201,-500.0,0.00013972,2]
[356640126,1742879451211,-500.0,0.00013972,2]
[356640127,1742879451220,-500.0,0.00013972,2]
[356640128,1742879451229,-627.81,0.00013972,2]
[356640129,1742879451239,-500.0,0.00013972,2]
[356640130,1742879451248,-500.0,0.00013972,2]
[356640131,1742879451257,-500.0,0.00013972,2]
[356640132,1742879451267,-500.0,0.00013972,2]
[356640133,1742879451276,-500.0,0.00013972,2]
[356640134,1742879451285,-500.0,0.00013972,2]
[356640135,1742879451295,-500.0,0.00013972,2]
[356640136,1742879451304,-500.0,0.00013972,2]
[356640137,1742879451313,-500.0,0.00013972,2]
[356640138,1742879451322,-500.0,0.00013972,2]
[356640139,1742879451331,-500.0,0.00013972,2]
[356640140,1742879451340,-500.0,0.00013972,2]
[356640141,1742879451350,-912.58,0.00013972,2]
[356640142,1742879451359,-500.0,0.00013972,2]
[356640143,1742879451368,-500.0,0.00013972,2]
[356640144,1742879451378,-931.11,0.00013972,2]
[356640145,1742879451387,-500.0,0.00013972,2]
[356640146,1742879451396,-689.24,0.00013972,2]
[356640147,1742879451406,-593.96644414,0.00013972,2]
[356640148,1742879451415,-568.72,0.00013972,2]
[356640149,1742879451424,-500.0,0.00013972,2]
[356640150,1742879451433,-500.0,0.00013972,2]
[356640151,1742879451442,-500.0,0.00013972,2]
[356640152,1742879451451,-500.0,0.00013972,2]
[356640153,1742879451460,-500.0,0.00013972,2]
[356640154,1742879451469,-620.71,0.00013972,2]
[356640155,1742879451479,-500.0,0.00013972,2]
[356640156,1742879451488,-500.0,0.00013972,2]
[356640157,1742879451497,-500.0,0.00013972,2]
[356640158,1742879451506,-557.53,0.00013972,2]
[356640159,1742879451515,-2211.56,0.00013972,2]
[356640160,1742879451524,-664.24,0.00013972,2]
[356640161,1742879451533,-500.0,0.00013972,2]
[356640162,1742879451542,-500.0,0.00013972,2]
[356640163,1742879451552,-2087.19,0.00013972,2]
[356640164,1742879451560,-500.0,0.00013972,2]
[356640165,1742879451570,-4587.66,0.00013972,2]
[356640166,1742879451579,-549.2,0.00013972,2]
[356640167,1742879451588,-500.0,0.00013972,2]
[356640168,1742879451597,-500.0,0.00013972,2]
[356640169,1742879451606,-2965.41,0.00013972,2]
[356640170,1742879451615,-1469.45,0.00013972,2]
[356640171,1742879451624,-500.0,0.00013972,2]
[356640172,1742879451634,-500.0,0.00013972,2]
[356640173,1742879451643,-500.0,0.00013972,2]
[356640174,1742879451653,-1094.81,0.00013972,2]
[356640175,1742879451663,-500.0,0.00013972,2]
[356640176,1742879451672,-500.0,0.00013972,2]
[356640177,1742879451681,-1595.16,0.00013972,2]
[356640178,1742879451691,-500.0,0.00013972,2]
[356640179,1742879451700,-500.0,0.00013972,2]
[356640180,1742879451709,-500.0,0.00013972,2]
[356640181,1742879451719,-500.0,0.00013972,2]
[356640182,1742879451728,-4099.93,0.00013972,2]
[356640183,1742879451738,-500.0,0.00013972,2]
[356640184,1742879451747,-515.27,0.00013972,2]
[356640185,1742879451756,-571.56,0.00013972,2]
[356640186,1742879451766,-500.0,0.00013972,2]
[356640187,1742879451776,-707.6,0.00013972,2]
[356640188,1742879451786,-500.0,0.00013972,2]
[356640189,1742879451794,-500.0,0.00013972,2]
[356640190,1742879451804,-500.0,0.00013972,2]
[356640191,1742879451813,-977.42,0.00013972,2]
[356640192,1742879451823,-868.95,0.00013972,2]
[356640193,1742879451833,-548.29666224,0.00013972,2]
[356640194,1742879451851,-500.0,0.00013972,2]
[356640195,1742879451861,-533.29362646,0.00013972,2]
[356640196,1742879451872,-8193.26,0.00013972,2]
[356640197,1742879451881,-500.0,0.00013972,2]
[356640198,1742879451893,-500.0,0.00013972,2]
[356640199,1742879451903,-11686.32353352,0.00013972,2]
[356640200,1742879732230,178.592563,0.00010959,2]
[356640252,1742880632501,-636.94,0.00012558,2]
[356640253,1742880632681,-492.98234495,0.00012558,2]
[356640264,1742880638349,-3870.07765505,0.00012558,2]
[356640265,1742880638359,-300.0,0.00012653,2]
[356640266,1742880638371,-193.95723975,0.00012653,2]
[356640267,1742880638381,-500.0,0.00012653,2]
[356640268,1742880638390,-500.0,0.00012653,2]
[356640269,1742880638401,-412.46655314,0.00012653,2]
[356640270,1742880638410,-593.25369348,0.00012653,2]
[356640271,1742880638419,-500.0,0.00012653,2]
[356640272,1742880638429,-500.0,0.00012653,2]
[356640273,1742880638440,-396.51154282,0.00012653,2]
[356640274,1742880638466,-196.74215066,0.00012653,2]
[356640275,1742880638475,-593.25369348,0.00012653,2]
[356640276,1742880638485,-593.25369348,0.00012653,2]
[356640277,1742880638494,-500.0,0.00012653,2]
[356640278,1742880638503,-593.25369348,0.00012653,2]
[356640279,1742880638512,-593.25369348,0.00012653,2]
[356640282,1742880638659,-500.0,0.00012653,2]
[356640283,1742880638670,-593.25369348,0.00012653,2]
[356640284,1742880638681,-593.25369348,0.00012653,2]
[356640285,1742880638692,-500.0,0.00012653,2]
[356640286,1742880638701,-593.25369348,0.00012653,2]
[356640287,1742880638711,-593.25369348,0.00012653,2]
[356640288,1742880638720,-152.86128313,0.00012653,2]
[356640319,1742880640635,-347.13871687,0.00012653,2]
[356640321,1742880640646,-593.25369348,0.00012653,2]
[356640322,1742880640656,-593.25369348,0.00012653,2]
[356640323,1742880640665,-628.81589598,0.00012653,2]
[356640324,1742880640675,-593.25369348,0.00012653,2]
[356640325,1742880640684,-593.25369348,0.00012653,2]
[356640326,1742880640694,-593.25369348,0.00012653,2]
[356640327,1742880640704,-593.25369348,0.00012653,2]
[356640328,1742880640713,-593.25369348,0.00012653,2]
[356640329,1742880640723,-593.25369348,0.00012653,2]
[356640330,1742880640733,-593.25369348,0.00012653,2]
[356640331,1742880640743,-593.25369348,0.00012653,2]
[356640332,1742880640753,-593.25369348,0.00012653,2]
[356640333,1742880640762,-593.25369348,0.00012653,2]
[356640334,1742880640771,-593.25369348,0.00012653,2]
[356640335,1742880640781,-593.25369348,0.00012653,2]
[356640336,1742880640790,-593.25369348,0.00012653,2]
[356640337,1742880640800,-593.25369348,0.00012653,2]
[356640338,1742880640811,-593.25369348,0.00012653,2]
[356640339,1742880640820,-457.42885138,0.00012653,2]
[356640340,1742880640847,-135.8248421,0.00012653,2]
[356640341,1742880640856,-593.25369348,0.00012653,2]
[356640342,1742880640865,-593.25369348,0.00012653,2]
[356640343,1742880640875,-593.25369348,0.00012653,2]
[356640344,1742880640884,-593.25369348,0.00012653,2]
[356640345,1742880640893,-593.25369348,0.00012653,2]
[356640346,1742880640902,-406.09522076,0.00012653,2]
[356640347,1742880640912,-593.25369348,0.00012653,2]
[356640348,1742880640921,-593.25369348,0.00012653,2]
[356640349,1742880640930,-593.25369348,0.00012653,2]
[356640350,1742880640939,-593.25369348,0.00012653,2]
[356640351,1742880640949,-593.25369348,0.00012653,2]
[356640352,1742880640959,-593.25369348,0.00012653,2]
[356640353,1742880640968,-593.25369348,0.00012653,2]
[356640354,1742880640977,-593.25369348,0.00012653,2]
[356640355,1742880640987,-593.25369348,0.00012653,2]
[356640356,1742880640996,-593.25369348,0.00012653,2]
[356640357,1742880641006,-593.25369348,0.00012653,2]
[356640358,1742880641015,-593.25369348,0.00012653,2]
[356640359,1742880641024,-593.25369348,0.00012653,2]
[356640360,1742880641034,-593.25369348,0.00012653,2]
[356640361,1742880641044,-593.25369348,0.00012653,2]
[356640362,1742880641053,-593.25369348,0.00012653,2]
[356640363,1742880641062,-593.25369348,0.00012653,2]
[356640364,1742880641072,-593.25369348,0.00012653,2]
[356640365,1742880641082,-593.25369348,0.00012653,2]
[356640366,1742880641091,-593.25369348,0.00012653,2]
[356640367,1742880641101,-593.25369348,0.00012653,2]
[356640368,1742880641110,-593.25369348,0.00012653,2]
[356640369,1742880641119,-593.25369348,0.00012653,2]
[356640370,1742880641128,-593.25369348,0.00012653,2]
[356640371,1742880641139,-593.25369348,0.00012653,2]
[356640372,1742880641148,-593.25369348,0.00012653,2]
[356640373,1742880641158,-593.25369348,0.00012653,2]
[356640374,1742880641167,-13540.11057632,0.00012655,2]
[356640375,1742880641176,-500.0,0.00012655,2]
[356640376,1742880641187,-11045.36293498,0.00012657,2]
[356640377,1742880641200,-345.24916212,0.00012657,2]
[356640405,1742880646606,-13509.3879029,0.00012657,2]
[356640406,1742880646615,-409.1889424,0.000127,2]
[356640407,1742880646627,-90.8110576,0.000127,2]
[356640408,1742880646636,-500.0,0.000127,2]
[356640409,1742880646645,-500.0,0.000127,2]
[356640410,1742880646654,-500.0,0.000127,2]
[356640411,1742880646663,-500.0,0.000127,2]
[356640412,1742880646673,-500.0,0.000127,2]
[356640413,1742880646682,-500.0,0.000127,2]
[356640414,1742880646691,-500.0,0.000127,2]
[356640415,1742880646701,-500.0,0.000127,2]
[356640416,1742880646710,-2979.44443915,0.000129,2]
[356640417,1742880646719,-500.0,0.00012929,2]
[356640418,1742880646729,-511.3898612,0.00013203,2]
[356640419,1742880646738,-500.0,0.00013373,2]
[356640420,1742880646747,-1216.2365931,0.00013397,8]
[356640421,1742880646757,-250.0,0.00013398,2]
[356640422,1742880646766,-1450.38732535,0.00013398,2]
[356640423,1742880646777,-11000.0,0.00013398,2]
[356640424,1742880844649,3874.7839882,0.00011932,2]
[356640425,1742880905430,230.676784,0.00010959,2]
[356640459,1742881832690,-271.30442478,0.00012445,2]
[356640461,1742881832700,-1314.94232055,0.00012456,2]
[356640463,1742881832713,-300.0,0.00012544,2]
[356640464,1742881832722,-578.51602278,0.00012545,2]
[356640465,1742881832732,-532.89705055,0.00012545,2]
[356640466,1742881832742,-578.51602278,0.00012545,2]
[356640467,1742881832751,-578.51602278,0.00012545,2]
[356640468,1742881832763,-578.51602278,0.00012545,2]
[356640469,1742881832772,-578.51602278,0.00012545,2]
[356640470,1742881832782,-578.51602278,0.00012545,2]
[356640471,1742881832792,-578.51602278,0.00012545,2]
[356640472,1742881832802,-578.51602278,0.00012545,2]
[356640473,1742881832812,-578.51602278,0.00012545,2]
[356640474,1742881832821,-578.51602278,0.00012545,2]
[356640475,1742881832830,-578.51602278,0.00012545,2]
[356640477,1742881832839,-578.51602278,0.00012545,2]
[356640479,1742881832848,-578.51602278,0.00012545,2]
[356640481,1742881832857,-578.51602278,0.00012545,2]
[356640483,1742881832866,-578.51602278,0.00012545,2]
[356640485,1742881832876,-578.51602278,0.00012545,2]
[356640486,1742881832885,-578.51602278,0.00012545,2]
[356640487,1742881832894,-578.51602278,0.00012545,2]
[356640488,1742881832903,-578.51602278,0.00012545,2]
[356640489,1742881832912,-578.51602278,0.00012545,2]
[356640490,1742881832926,-578.51602278,0.00012545,2]
[356640491,1742881832936,-578.51602278,0.00012545,2]
[356640492,1742881832945,-578.51602278,0.00012545,2]
[356640493,1742881832954,-578.51602278,0.00012545,2]
[356640494,1742881832963,-578.51602278,0.00012545,2]
[356640495,1742881832972,-578.51602278,0.00012545,2]
[356640496,1742881832982,-578.51602278,0.00012545,2]
[356640497,1742881832991,-578.51602278,0.00012545,2]
[356640498,1742881833000,-578.51602278,0.00012545,2]
[356640499,1742881833009,-578.51602278,0.00012545,2]
[356640500,1742881833019,-578.51602278,0.00012545,2]
[356640501,1742881833028,-578.51602278,0.00012545,2]
[356640502,1742881833038,-578.51602278,0.00012545,2]
[356640503,1742881833049,-578.51602278,0.00012545,2]
[356640504,1742881833058,-10.86086613,0.00012545,2]
[356640505,1742881833078,-567.65515665,0.00012545,2]
[356640506,1742881833088,-578.51602278,0.00012545,2]
[356640507,1742881833097,-578.51602278,0.00012545,2]
[356640508,1742881833106,-578.51602278,0.00012545,2]
[356640509,1742881833115,-578.51602278,0.00012545,2]
[356640510,1742881833125,-578.51602278,0.00012545,2]
[356640511,1742881833135,-578.51602278,0.00012545,2]
[356640512,1742881833144,-578.51602278,0.00012545,2]
[356640513,1742881833153,-578.51602278,0.00012545,2]
[356640514,1742881833162,-578.51602278,0.00012545,2]
[356640515,1742881833172,-578.51602278,0.00012545,2]
[356640516,1742881833181,-578.51602278,0.00012545,2]
[356640517,1742881833191,-578.51602278,0.00012545,2]
[356640518,1742881833200,-578.51602278,0.00012545,2]
[356640519,1742881833210,-2020.35595646,0.00012545,2]
[356640520,1742881833219,-2020.35595646,0.00012545,2]
[356640521,1742881833228,-2020.35595646,0.00012545,2]
[356640522,1742881833237,-2020.35595646,0.00012545,2]
[356640523,1742881833247,-2020.35595646,0.00012545,2]
[356640524,1742881833258,-2020.35595646,0.00012545,2]
[356640525,1742881833268,-2020.35595646,0.00012545,2]
[356640526,1742881833277,-2020.35595646,0.00012545,2]
[356640527,1742881833287,-2020.35595646,0.00012545,2]
[356640528,1742881833297,-2020.35595646,0.00012545,2]
[356640529,1742881833307,-2020.35595646,0.00012545,2]
[356640530,1742881833316,-2020.35595646,0.00012545,2]
[356640531,1742881833325,-2020.35595646,0.00012545,2]
[356640532,1742881833334,-2020.35595646,0.00012545,2]
[356640533,1742881833344,-2020.35595646,0.00012545,2]
[356640534,1742881833353,-2020.35595646,0.00012545,2]
[356640535,1742881833362,-2020.35595646,0.00012545,2]
[356640536,1742881833372,-2020.35595646,0.00012545,2]
[356640537,1742881833381,-2020.35595646,0.00012545,2]
[356640538,1742881833390,-2020.35595646,0.00012545,2]
[356640539,1742881833400,-2020.35595646,0.00012545,2]
[356640540,1742881833409,-2020.35595646,0.00012545,2]
[356640541,1742881833419,-2020.35595646,0.00012545,2]
[356640542,1742881833429,-2020.35595646,0.00012545,2]
[356640543,1742881833438,-2020.35595646,0.00012545,2]
[356640544,1742881833448,-2020.35595646,0.00012545,2]
[356640545,1742881833458,-1969.84705754,0.00012545,2]
[356640546,1742881833467,-1969.84705754,0.00012545,2]
[356640547,1742881833477,-1969.84705754,0.00012545,2]
[356640548,1742881833488,-1969.84705754,0.00012545,2]
[356640549,1742881833497,-1969.84705754,0.00012545,2]
[356640550,1742881833507,-1969.84705754,0.00012545,2]
[356640551,1742881833517,-1969.84705754,0.00012545,2]
[356640552,1742881833528,-1969.84705754,0.00012545,2]
[356640553,1742881833538,-1969.84705754,0.00012545,2]
[356640554,1742881833548,-1969.84705754,0.00012545,2]
[356640555,1742881833558,-1969.84705754,0.00012545,2]
[356640556,1742881833715,-1969.84705754,0.00012545,2]
[356640557,1742881833725,-1969.84705754,0.00012545,2]
[356640558,1742881833738,-1969.84705753,0.00012545,2]
[356640559,1742881833748,-151.0,0.00012546,2]
[356640560,1742881833759,-600.0,0.00012546,2]
[356640561,1742881833768,-4151.4470285,0.00012553,2]
[356640562,1742881833777,-24705.67040273,0.00012553,2]
[356640563,1742881833808,-500.0,0.00012544,2]
[356640564,1742881833817,-8190.05408212,0.00012553,2]
[356640576,1742881838485,-500.0,0.00012544,2]
[356640577,1742881838495,-519.62230195,0.00012544,2]
[356640578,1742881838505,-41172.0270667,0.00012553,2]
[356640579,1742881838517,-3878.78992834,0.00012553,2]
[356640580,1742881838530,-7283.7317765,0.00012553,2]
[356640581,1742881838541,-9322.91230096,0.00012553,2]
[356640582,1742881838553,-156956.32988959,0.00012553,2]
[356640583,1742881838564,-70490.48455306,0.00012553,2]
[356640584,1742881838574,-5000.0,0.00012556,2]
[356640585,1742881838582,-500.0,0.00012573,2]
[356640586,1742881838592,-500.0,0.00012573,2]
[356640587,1742881838601,-500.0,0.00012573,2]
[356640588,1742881838610,-500.0,0.00012573,2]
[356640589,1742881838619,-499.04438425,0.00012573,2]
[356640590,1742881838628,-500.0,0.00012573,2]
[356640591,1742881838637,-500.0,0.00012573,2]
[356640592,1742881838647,-500.0,0.00012573,2]
[356640593,1742881838657,-500.0,0.00012573,2]
[356640594,1742881838667,-500.0,0.00012573,2]
[356640595,1742881838676,-500.0,0.00012573,2]
[356640596,1742881838685,-500.0,0.00012573,2]
[356640597,1742881838694,-920.56220065,0.00012601,2]
[356640598,1742881838703,-10930.84029483,0.00012665,2]
[356640599,1742881838719,-350.4527043,0.00012665,2]
[356640600,1742881838730,-3075.94034887,0.00012665,2]
[356640610,1742881840952,-4806.65434554,0.00012665,2]
[356640864,1742882207079,230.676784,0.00010959,2]
[356640910,1742883031999,-1224.46577996,0.00012241,2]
[356640911,1742883032009,-163.52865105,0.00012255,2]
[356640912,1742883032019,-150.0,0.00012353,2]
[356640913,1742883032029,-300.0,0.00012436,2]
[356640914,1742883032041,-500.0,0.00012437,2]
[356640915,1742883032050,-500.0,0.00012437,2]
[356640916,1742883032059,-500.0,0.00012437,2]
[356640917,1742883032069,-500.0,0.00012437,2]
[356640918,1742883032078,-500.0,0.00012437,2]
[356640919,1742883032087,-500.0,0.00012437,2]
[356640921,1742883032096,-500.0,0.00012437,2]
[356640923,1742883032106,-500.0,0.00012437,2]
[356640925,1742883032116,-605.28957496,0.00012437,2]
[356640927,1742883032126,-5000.0,0.00012445,2]
[356640929,1742883032135,-500.0,0.000125,2]
[356640931,1742883032145,-506.06937843,0.000125,2]
[356640933,1742883032155,-500.0,0.000125,2]
[356640935,1742883032164,-265.88637129,0.000125,2]
[356640967,1742883032561,-358.66176254,0.000125,2]
[356640968,1742883032570,-500.0,0.000125,2]
[356640969,1742883032580,-414.65861814,0.000125,2]
[356640970,1742883032591,-85.34138186,0.000125,2]
[356640971,1742883032600,-500.0,0.000125,2]
[356640972,1742883032610,-500.0,0.000125,2]
[356640973,1742883032619,-500.0,0.000125,2]
[356640974,1742883032629,-337.0930189,0.000125,2]
[356640975,1742883032638,-500.0,0.000125,2]
[356640976,1742883032647,-199.42907723,0.00012665,2]
[356640977,1742883032659,-172.594823,0.00012876,2]
[356640978,1742883032669,-152.130205,0.00012876,2]
[356640979,1742883032679,-152.130205,0.00012876,3]
[356640980,1742883032688,-3282.53397883,0.000129,2]
[356640981,1742883032697,-425.13367114,0.0001326,2]
[356640982,1742883032707,-232.57850333,0.00013297,2]
[356640983,1742883032717,-192.83385676,0.00013298,2]
[356640984,1742883032726,-500.0,0.00013298,2]
[356640985,1742883032736,-240.44292599,0.00013298,2]
[356640986,1742883032746,-500.0,0.00013298,2]
[356640987,1742883032755,-13439.2521134,0.000133,2]
[356640988,1742883032765,-232.57850333,0.00013348,2]
[356640989,1742883032774,-165.9117292,0.00013397,2]
[356640990,1742883032784,-232.57850333,0.00013399,2]
[356640991,1742883032793,-232.57850333,0.00013449,2]
[356640992,1742883032803,-232.57850333,0.000135,2]
[356640993,1742883032812,-1296.64425184,0.000135,2]
[356640994,1742883032822,-254.18479309,0.0001351,2]
[356640995,1742883032831,-250.0,0.0001353,2]
[356640996,1742883032840,-400.0,0.0001353,2]
[356640997,1742883032850,-471.9559766,0.00013552,2]
[356640998,1742883032860,-43001.29345677,0.00013598,2]
[356640999,1742883033002,-1084.74651482,0.00013598,2]
[356641000,1742883033070,15064.3440035,0.00011732,2]
[356641014,1742883037700,-2282.53026762,0.00013598,2]
[356641016,1742883037780,-2697.14309063,0.00013598,2]
[356641021,1742883040114,-4549.91186261,0.00013598,2]
[356641022,1742883040127,-229786.59781256,0.00013598,2]
[356641338,1742883440235,150.0,0.0001202,2]
[356641443,1742884232222,-278.80680054,0.00012326,2]
[356641446,1742884232241,-21.19319946,0.00012326,2]
[356641448,1742884232250,-461.29777326,0.00012327,2]
[356641450,1742884232260,-500.0,0.00012327,2]
[356641453,1742884232271,-500.0,0.00012327,2]
[356641455,1742884232285,-500.0,0.00012327,2]
[356641457,1742884232302,-500.0,0.00012327,2]
[356641459,1742884232311,-500.0,0.00012327,2]
[356641461,1742884232321,-500.0,0.00012327,2]
[356641463,1742884232330,-500.0,0.00012327,2]
[356641465,1742884232339,-500.0,0.00012327,2]
[356641467,1742884232348,-500.0,0.00012327,2]
[356641469,1742884232357,-500.0,0.00012327,2]
[356641471,1742884232366,-500.0,0.00012327,2]
[356641473,1742884232376,-500.0,0.00012327,2]
[356641475,1742884232385,-500.0,0.00012327,2]
[356641477,1742884232399,-633.45978017,0.00012327,2]
[356641479,1742884232408,-500.0,0.00012327,2]
[356641481,1742884232418,-500.0,0.00012327,2]
[356641483,1742884232427,-500.0,0.00012327,2]
[356641484,1742884232438,-500.0,0.00012327,2]
[356641487,1742884232447,-22189.0977251,0.00012328,2]
[356641489,1742884232457,-5000.0,0.00012338,2]
[356641491,1742884232467,-10000.0,0.00012562,2]
[356641493,1742884232476,-575.58754141,0.000126,2]
[356641494,1742884232486,-500.0,0.000126,2]
[356641497,1742884232495,-2872.21723145,0.000129,2]
[356641499,1742884232504,-150.0,0.00013387,2]
[356641501,1742884232514,-152.22021774,0.000134,2]
[356641503,1742884232523,-400.0,0.0001352,2]
[356641504,1742884232532,-420.0,0.00013527,2]
[356641507,1742884232541,-353.9669824,0.00013552,2]
[356641509,1742884232551,-525.5386703,0.00013597,2]
[356641511,1742884232561,-36203.89902917,0.00013598,2]
[356641513,1742884232572,-66678.12810901,0.00013598,2]
[356641582,1742884237935,-368.31004819,0.00012337,2]
[356641583,1742884237944,-500.0,0.00012337,2]
[356641584,1742884237954,-16321.0389694,0.00013598,2]
[356641585,1742884237966,-42131.5029603,0.00013598,2]
[356641650,1742884246228,-452.07000005,0.00013598,2]
[356641658,1742884908885,218.88,0.0001202,2]
[356641695,1742885432344,-2122.89697659,0.00012462,2]
[356641696,1742885432356,-682.03105792,0.00012462,2]
[356641731,1742885438142,-2195.07196549,0.00012462,2]
[356641733,1742885438151,-500.0,0.00012531,2]
[356641735,1742885438160,-514.82886446,0.00012531,2]
[356641737,1742885438170,-300.0,0.00012531,2]
[356641739,1742885438179,-1131.39681505,0.00012532,2]
[356642156,1742886104406,4151.4470285,0.00012018,2]
[356642157,1742886211129,-152.66635622,0.00012043,2]
[356642158,1742886244993,-177.57121678,0.00012042,2]
[356642160,1742886275742,-122.42878322,0.00012042,2]
[356642161,1742886275766,-55.14243356,0.00012042,2]
[356642166,1742886303964,-198.30041947,0.00012042,2]
[356642170,1742886365188,-218.49776043,0.00012042,2]
[356642238,1742886632771,-238.51341963,0.00012042,2]
[356642239,1742886632781,-567.65515665,0.00012042,2]
[356642241,1742886632790,-578.51602278,0.00012042,2]
[356642243,1742886632799,-24747.33364378,0.00012043,2]
[356642245,1742886632808,-166.5273086,0.00012118,2]
[356642247,1742886632817,-223.30884137,0.00012118,2]
[356642249,1742886632826,-7851.0107074,0.00012177,2]
[356642251,1742886632835,-150.0,0.00012282,2]
[356642253,1742886632844,-500.0,0.00012431,2]
[356642255,1742886632853,-372.83659948,0.00012431,2]
[356642257,1742886632862,-5000.0,0.00012432,2]
[356642259,1742886632871,-2842.12130588,0.000129,2]
[356642261,1742886632881,-165.13018366,0.00013244,2]
[356642263,1742886632890,-11427.30457831,0.00013258,2]
[356642312,1742886638308,-7000.0,0.00013258,2]
[356642403,1742886640723,-1424.20451703,0.00013258,2]
[356642404,1742886640733,-165.13018364,0.00013276,2]
[356642405,1742886640742,-165.13018364,0.00013309,2]
[356642406,1742886640752,-165.13018364,0.00013341,2]
[356642407,1742886640761,-400.0,0.00013344,2]
[356642408,1742886640770,-165.13018364,0.00013373,2]
[356642409,1742886640779,-1728.85900244,0.00013373,2]
[356642410,1742886640788,-197483.84454367,0.0001339,2]
[356642411,1742886641365,-0.02047924,0.0001339,2]
[356642520,1742887832850,-300.0,0.00012432,2]
[356642521,1742887832860,-23650.7632123,0.00012433,2]
[356642522,1742887832869,-176.9714474,0.00012482,2]
[356642523,1742887832878,-150.0,0.00013023,2]
[356642524,1742887832887,-2486.85614261,0.0001319,2]
[356642525,1742887832897,-232.57850333,0.00013273,2]
[356642526,1742887832906,-1296.64425184,0.00013273,2]
[356642527,1742887832915,-500.0,0.00013289,2]
[356642528,1742887832924,-208.94020073,0.00013289,2]
[356642529,1742887832934,-5000.0,0.0001329,2]
[356642530,1742887832943,-12375.11108119,0.0001329,2]
[356642552,1742887838454,-776.55890634,0.0001329,2]
[356642553,1742887838575,-2265.61131233,0.0001329,2]
[356642632,1742887846671,-102594.62482941,0.0001329,2]
[356642633,1742887846684,-43675.63665517,0.0001329,2]
[356642634,1742887846702,-8660.6,0.0001329,2]
[356642690,1742889031885,-2332.69691266,0.00012333,2]
[356642691,1742889031894,-1000.0,0.00013,2]
[356642692,1742889031903,-150.0,0.00013067,2]
[356642693,1742889031912,-500.0,0.00013173,2]
[356642694,1742889031921,-514.17927835,0.00013173,2]
[356642695,1742889031930,-279.00887657,0.00013173,2]
[356642696,1742889031939,-500.0,0.00013173,2]
[356642697,1742889031948,-502.82749679,0.00013173,2]
[356642698,1742889031957,-500.0,0.00013173,2]
[356642699,1742889031966,-500.0,0.00013173,2]
[356642700,1742889031976,-500.0,0.00013173,2]
[356642701,1742889031985,-300.0,0.00013189,2]
[356642702,1742889031994,-259.34527491,0.00013189,2]
[356642703,1742889032003,-496.25814052,0.00013189,2]
[356642704,1742889032011,-793.431926,0.0001319,2]
[356642705,1742889032020,-29771.77771717,0.0001319,2]